{"text_format":"1","workbook":"xlsx","n_sheets":1,"sheets":["Приложение № 2.26"],"not_rendered":{"charts":0,"images":0,"macros":0,"external_links":0,"defined_names":0,"comments":0,"pivot_tables":0},"unopened":[],"bounds":{"document_bytes":16777216,"sheet_cells":100000,"rows_first":2000,"rows_last":500,"rows_between":2000,"halvings":0,"cell_chars":16384,"cell_head_chars":4096},"cells_cut":0,"cells_raw":0,"read":"whole","date_system":"1900"}

{"sheet":"Приложение № 2.26","index":0,"n_rows":41,"n_cols":6,"rows_kept":41,"cut":false,"hidden":false,"merged":[[0,0,0,5],[1,0,1,5],[2,0,2,5],[3,0,3,5],[4,0,4,5],[40,0,40,5],[34,0,34,5],[6,2,6,5],[7,2,7,5],[8,2,8,5],[10,0,10,5],[13,0,13,5],[30,0,30,5],[39,0,39,5]]}
["Приложение № 6"]
[" к Закону Приднестровской Молдавской Республики"]
["\"О внесении изменений и дополнений"]
["в Закон Приднестровской Молдавской Республики"]
["\"О республиканском бюджете на 2026 год\""]
[]
[null,null,"Приложение № 2.26"]
[null,null,"к Закону Приднестровской Молдавской Республики"]
[null,null,"\"О республиканском бюджете на 2026 год\""]
[]
["Смета расходов на финансирование государственного заказа по обеспечению создания, сопровождения и развития комплекса информационных систем,  используемых для реализации государственных функций и предоставления государственных услуг в электронной форме \"Электронное Правительство\", на 2026 год"]
[]
["№ п/п","Наименование","Стоимость сопровожде- ния ГИС, руб.","Стоимость создания ГИС, руб.","Стоимость развития ГИС, руб.","Стоимость ГИС, руб."]
["Министерство цифрового развития, связи и массовых коммуникаций                                                                                                    Приднестровской Молдавской Республики"]
["1.","Государственная информационная система \"Корневой удостоверяющий центр Приднестровской Молдавской Республики\"",81831,null,null,{"$f":"SUM(C15:E15)","v":81831}]
["2.","Государственная информационная система  \"Сеть передачи данных межведомственного электронного взаимодействия Приднестровской Молдавской Республики\"",402695,null,null,402695]
["3.","Государственная информационная система  \"Система межведомственного обмена данными\"",344394,null,null,344394]
["4.","Государственная информационная система  \"Межведомственный электронный документооборот\"",733032,211558,29288,973878]
["5.","Государственная информационная система  \"Портал государственных услуг Приднестровской Молдавской Республики\"",371940,null,null,371940]
["6.","Государственная информационная система  \"Единый реестр государственных услуг\"",86663,null,null,86663]
["7.","Государственная информационная система \"Реестр документов разрешительного характера\"",93222,null,null,93222]
["8.","Государственная информационная система \"Регистрация юридических лиц \"Одно окно\"",68851,null,null,68851]
["9.","Государственная информационная система \"Регистрация индивидуальных предпринимателей \"Одно окно\"",68851,null,null,68851]
["10.","Государственная информационная система \"Государственный земельный кадастр\"",371785,null,null,371785]
["11.","Государственная информационная система \"Электронные платежи\"",644821,203587,null,848408]
["12.","Информационная система \"Единый реестр объектов недвижимого имущества и земель\"",null,55000,null,55000]
["13.","Государственная информационная система \"Централизованное создание и хранение резервных копий информации органов государственной власти и организаций\"",null,93000,null,{"$f":"SUM(C27:E27)","v":93000}]
["14.","Информационная система \"Автоматизация питания\"",null,null,50200,{"$f":"SUM(C28:E28)","v":50200}]
[null,"Информационная система «Государственная электронная почта» ",54510,null,null,54510]
[null,"Итого",{"$f":"C15+C16+C17+C18+C19+C20+C21+C22+C23+C24+C25+C26+C29","v":3322595},{"$f":"D15+D16+D17+D18+D19+D20+D21+D22+D23+D24+D25+D26+D29+D27+D28","v":563145},{"$f":"E15+E16+E17+E18+E19+E20+E21+E22+E23+E24+E25+E26+E29+E27+E28","v":79488},{"$f":"SUM(C30:E30)","v":3965228}]
["Министерство экономического развития Приднестровской Молдавской Республики"]
["1.","Государственная информационная система \"Закупки\"",360879,null,0,{"$f":"SUM(C32:E32)","v":360879}]
["2.","Государственная информационная система \"Государственное имущество\"",232942,null,0,{"$f":"SUM(C33:E33)","v":232942}]
[null,"Итого",{"$f":"SUM(C32:C33)","v":593821},{"$f":"SUM(D32:D33)","v":0},{"$f":"SUM(E32:E33)","v":0},{"$f":"SUM(F32:F33)","v":593821}]
["Министерство юстиции Приднестровской Молдавской Республики"]
["1.","Государственная информационная система \"Юридическая литература\"",314766,0,0,{"$f":"C36+D36+E36","v":314766}]
[null,"Итого",{"$f":"SUM(C35:C36)","v":314766},{"$f":"SUM(D35:D36)","v":0},{"$f":"SUM(E35:E36)","v":0},{"$f":"SUM(F35:F36)","v":314766}]
[null,"Всего",{"$f":"C34+C30+C37","v":4231182},{"$f":"D34+D30+D37","v":563145},{"$f":"E34+E30+E37","v":79488},{"$f":"F34+F30+F37","v":4873815}]
[]
["Примечание."]
["Разрешить исполнительному органу государственной власти, ответственному за исполнение республиканского бюджета, на основании обоснованных обращений главных распределителей бюджетных средств перераспределять средства в пределах общей стоимости государственного заказа, утвержденного настоящим Приложением"]